bitfinex/quotes_ETHUSD_20241215
["timestamp","ask_amount","ask_price","bid_price","bid_amount"]
[1734275285786,1.07262321,3896.5,3895.7,0.88833319]
[1734275285961,0.86482133,3896.4,3895.8,0.781]
[1734275286161,4.17516434,3896.7,3895.8,0.781]
[1734275286162,1.07262321,3896.5,3895.8,0.781]
[1734275286376,0.86482795,3896.4,3895.8,0.781]
[1734275286717,1.07262321,3896.6,3895.9,0.80666597]
[1734275286882,1.60887434,3896.8,3895.8,0.22222491]
[1734275286883,1.07262321,3896.8,3896.1,0.781]
[1734275287054,1.07262321,3896.8,3895.9,0.781]
[1734275287243,1.07262321,3896.8,3896.1,0.781]
[1734275287441,1.93741059,3896.9,3896.1,0.781]
[1734275287739,2.15202667,3896.8,3896.2,0.781]
[1734275287943,1.07262321,3896.9,3896.2,0.781]
[1734275289268,3.22465321,3896.8,3896.2,0.781]
[1734275289470,1.07262321,3896.9,3896.2,0.781]
[1734275290286,2.56636,3896.6,3896.2,0.781]
[1734275290497,1.31052813,3896.5,3896.2,0.781]
[1734275290703,0.4499512,3896.5,3896.2,0.781]
[1734275291268,2.56647,3896.4,3896.2,0.781]
[1734275291969,0.86058393,3896.3,3896.2,0.781]
[1734275292164,2.56647,3896.4,3896.2,0.781]
[1734275292402,0.40890444,3896.3,3896.2,0.781]
[1734275292976,1.26945232,3896.3,3895.9,0.817]
[1734275293183,0.40890444,3896.3,3895.9,0.817]
[1734275293708,0.86060413,3896.2,3895.9,0.817]
[1734275294784,2.97545444,3896.3,3895.9,0.817]
[1734275295003,1.3104778,3896.2,3895.9,0.817]
[1734275295197,0.44980289,3896.2,3895.9,0.817]
[1734275296582,1.07262321,3896.6,3895.9,0.817]
[1734275296783,1.07262321,3896.9,3896.1,0.817]
[1734275296987,1.07262321,3896.9,3895.9,2.56678]
[1734275296988,1.07262321,3896.9,3896.2,0.817]
[1734275297286,0.86056589,3896.8,3896.2,0.817]
[1734275297608,1.07262321,3897.0,3896.2,0.817]
[1734275297807,3.22378174,3897.0,3896.2,0.817]
[1734275299415,2.15097952,3896.9,3896.2,0.817]
[1734275299613,2.56615,3896.9,3896.2,0.817]
[1734275299815,0.86033739,3896.8,3896.2,0.817]
[1734275303780,3.67304427,3896.8,3896.2,0.817]
[1734275303980,2.56654,3896.3,3895.5,0.7835]
[1734275306204,1.07262321,3896.5,3895.5,0.7835]
[1734275306516,3.63888321,3896.8,3895.7,0.7835]
[1734275306687,2.75383237,3896.7,3895.7,0.7835]
[1734275306899,0.60316576,3896.7,3895.7,0.7835]
[1734275307208,0.86027256,3896.6,3895.7,0.7835]
[1734275307643,0.60316576,3896.7,3895.7,0.7835]
[1734275308103,3.16949576,3896.7,3895.7,0.7835]
[1734275308309,0.4242119,3896.6,3895.7,0.7835]
[1734275310153,3.42668332,3896.5,3895.7,0.7835]
[1734275310444,2.56643,3896.5,3895.7,0.7835]
[1734275310589,1.49683511,3896.6,3895.7,0.7835]
[1734275310794,2.56629,3896.7,3895.7,0.7835]
[1734275311053,0.8602317,3896.6,3895.7,0.7835]
[1734275311758,2.56629,3896.7,3895.7,0.7835]
[1734275311941,0.86022077,3896.6,3895.7,0.7835]
[1734275312143,2.56629,3896.7,3895.7,0.7835]
[1734275313431,2.56629,3896.7,3895.8,0.7792]
[1734275314608,0.86025974,3896.6,3895.8,0.7792]
[1734275315013,2.56629,3896.7,3895.8,0.7792]
[1734275315546,0.86027858,3896.6,3895.8,0.7792]
[1734275315832,2.56629,3896.7,3895.8,0.7792]
[1734275316042,0.86027877,3896.6,3895.8,0.7792]
[1734275316344,3.16945876,3896.7,3895.8,0.7792]
[1734275316497,0.86033594,3896.6,3895.8,0.7792]
[1734275317147,1.67579197,3896.7,3895.8,0.7792]
[1734275317401,2.56652,3896.4,3895.8,0.7792]
[1734275317547,0.4717382,3896.3,3895.8,0.7792]
[1734275317741,1.33218073,3896.3,3895.8,0.7792]
[1734275317948,0.4717382,3896.3,3895.8,0.7792]
[1734275318351,2.5667,3896.1,3895.1,0.8016]
[1734275318723,2.56686,3895.8,3895.1,0.8016]
[1734275319860,3.63935321,3896.0,3895.1,0.8016]
[1734275320185,4.71826028,3895.9,3895.1,0.8016]
[1734275320485,0.86058411,3895.8,3895.1,0.8016]
[1734275320918,2.56674,3896.0,3895.1,0.8016]
[1734275322368,0.86069242,3895.9,3895.1,0.8016]
[1734275322558,2.56674,3896.0,3895.1,0.8016]
[1734275322895,3.09156376,3896.0,3895.1,0.8016]
[1734275324312,3.09156376,3896.0,3895.2,0.88831628]
[1734275324497,3.09156376,3896.0,3895.3,0.7682]
[1734275327073,1.07262321,3896.1,3895.3,0.7682]
[1734275327282,0.86067589,3896.0,3895.3,0.7682]
[1734275327479,2.5667,3896.1,3895.3,0.7682]
[1734275327680,0.86065705,3896.0,3895.3,0.7682]
[1734275329628,1.07262321,3896.2,3895.5,0.7682]
[1734275329845,4.17539434,3896.4,3895.4,0.7682]
[1734275329846,1.07262321,3896.4,3895.4,0.7682]
[1734275329978,1.07262321,3896.5,3895.5,1.22155119]
[1734275330173,1.07262321,3896.5,3895.3,2.56718]
[1734275330174,2.56647,3896.4,3895.6,0.7682]
[1734275330375,0.86053962,3896.3,3895.6,0.7682]
[1734275330676,2.56647,3896.4,3895.6,0.7682]
[1734275331480,0.86053477,3896.3,3895.6,0.7682]
[1734275331686,2.56647,3896.4,3895.6,0.7682]
[1734275331884,0.86053605,3896.3,3895.6,0.7682]
[1734275332213,2.56647,3896.4,3895.6,0.7682]
[1734275332882,0.86052159,3896.3,3895.6,0.7682]
[1734275333078,2.56647,3896.4,3895.6,0.7682]
[1734275335906,2.5666,3896.2,3895.6,0.7682]
[1734275336108,2.56667,3896.1,3895.6,0.7682]
[1734275336783,1.07262321,3896.2,3895.6,0.7682]
[1734275336992,0.86071393,3896.1,3895.6,0.7682]
[1734275337236,3.63915321,3896.3,3895.6,0.7682]
[1734275337380,2.15171738,3896.2,3895.6,0.7682]
[1734275337585,0.57908706,3896.1,3895.6,0.7682]
[1734275341217,2.56669,3896.1,3895.6,0.7682]
[1734275341420,2.56673,3896.0,3895.6,0.7682]
[1734275342023,1.07262321,3896.3,3895.6,0.7682]
[1734275342222,2.56682,3895.9,3895.3,0.7793]
[1734275342429,0.86072298,3895.8,3895.3,0.7793]
[1734275342588,1.07262321,3895.9,3895.3,0.7793]
[1734275343258,2.56693,3895.7,3895.3,0.7793]
[1734275344804,1.07262321,3895.9,3895.3,0.7793]
[1734275345048,2.5671,3895.5,3895.3,0.7793]
[1734275347134,2.5671,3895.5,3895.0,0.78187]
[1734275349645,2.56709,3895.5,3895.0,0.78187]
[1734275350386,1.07262321,3895.7,3895.0,0.78187]
[1734275350718,1.07262321,3895.7,3895.0,0.00257]
[1734275350719,1.07262321,3895.5,3895.0,0.00257]
[1734275350879,2.56732,3895.1,3895.0,0.00257]
[1734275351300,4.71865281,3895.1,3895.0,0.00257]
[1734275351468,4.71829497,3895.1,3895.0,0.00257]
[1734275352218,2.56718,3895.4,3895.0,0.00257]
[1734275353264,3.14721283,3895.4,3895.0,0.00257]
[1734275353463,2.56719,3895.3,3895.0,0.00257]
[1734275354362,4.19132394,3895.6,3895.0,0.00257]
[1734275354684,3.11870073,3895.6,3895.1,0.806]
[1734275355591,2.56708,3895.5,3895.1,0.806]
[1734275355795,2.5672,3895.3,3895.0,0.00257]
[1734275357602,2.56732,3895.1,3895.0,0.00257]
[1734275357803,4.71707174,3895.1,3895.0,0.00257]
[1734275357966,5.53631867,3895.1,3895.0,0.00257]
[1734275358375,6.61085137,3895.1,3895.0,0.00257]
[1734275358571,5.53631867,3895.1,3895.0,0.00257]
[1734275359524,6.61068845,3895.1,3895.0,0.00257]
[1734275360715,9.33021867,3895.1,3895.0,0.00257]
[1734275360890,11.07160214,3895.1,3895.0,0.00257]
[1734275361280,8.9218504,3895.1,3895.0,0.00257]
[1734275361503,11.09858816,3895.1,3895.0,0.00257]
[1734275362374,11.47734757,3895.1,3895.0,0.00257]
[1734275363002,11.6074784,3895.1,3895.0,0.00257]
[1734275363529,11.60697381,3895.1,3895.0,0.00257]
[1734275364538,11.47665847,3895.1,3895.0,0.00257]
[1734275365142,11.47665847,3895.1,3894.9,5.3e-06]
[1734275365143,3.0,3895.0,3894.9,5.3e-06]
[1734275365412,9.74307073,3895.0,3894.9,5.3e-06]
[1734275366041,8.87105367,3895.0,3894.9,5.3e-06]
[1734275366323,9.74086747,3895.0,3894.9,5.3e-06]
[1734275366626,10.29086747,3895.0,3894.9,5.3e-06]
[1734275367241,12.02998529,3895.0,3894.9,5.3e-06]
[1734275368318,10.29086747,3895.0,3894.9,5.3e-06]
[1734275368631,11.89929566,3895.0,3894.9,5.3e-06]
[1734275369304,10.29086747,3895.0,3894.9,5.3e-06]
[1734275370730,10.28892707,3895.0,3894.9,5.3e-06]
[1734275371612,11.36099342,3895.0,3894.9,5.3e-06]
[1734275372323,10.81099342,3895.0,3894.9,5.3e-06]
[1734275372505,5.56739,3895.0,3894.9,5.3e-06]
[1734275372707,2.56739,3895.0,3894.9,5.3e-06]
[1734275373955,2.56430021,3895.0,3894.9,5.3e-06]
[1734275376817,2.56723,3895.3,3894.9,5.3e-06]
[1734275377029,2.56719,3895.3,3894.9,5.3e-06]
[1734275377602,0.50943473,3895.4,3894.9,5.3e-06]
[1734275378018,2.56712,3895.5,3894.9,5.3e-06]
[1734275378224,3.08585079,3895.5,3894.9,5.3e-06]
[1734275381271,2.56712,3895.5,3894.9,5.3e-06]
[1734275382034,2.56694,3895.7,3894.9,5.3e-06]
[1734275382336,2.56694,3895.7,3895.0,0.7647]
[1734275382961,1.07206635,3895.9,3895.0,0.7647]
[1734275383271,1.07206635,3896.4,3895.1,0.7647]
[1734275383569,1.07206635,3896.4,3895.0,2.56738]
[1734275383570,3.08890737,3896.4,3895.3,0.7647]
[1734275383946,2.56655,3896.3,3895.3,0.7647]
[1734275384275,2.56661,3896.2,3895.3,0.7647]
[1734275385244,1.59448372,3896.4,3895.3,0.7647]
[1734275385442,2.56683,3895.9,3895.3,0.7647]
[1734275386569,1.07206635,3896.1,3895.3,0.7647]
[1734275387366,1.07206635,3896.0,3895.3,0.7647]
[1734275387533,0.8699142,3895.9,3895.3,0.7647]
[1734275387732,1.07206635,3896.0,3895.3,0.7647]
[1734275387964,2.56694,3895.7,3895.3,0.7647]
[1734275388590,2.5668,3895.9,3895.3,0.7647]
[1734275388747,2.56703,3895.6,3895.3,0.7647]
[1734275389150,2.56707,3895.5,3895.3,0.7647]
[1734275389370,2.56713,3895.4,3895.0,0.7647]
[1734275390259,0.8331,3895.4,3894.9,5.3e-06]
[1734275390565,2.56739,3895.0,3894.9,5.3e-06]
[1734275390983,3.43785529,3895.0,3894.9,5.3e-06]
[1734275391394,4.74362646,3895.0,3894.9,5.3e-06]
[1734275391578,5.81569281,3895.0,3894.9,5.3e-06]
[1734275391784,4.74362646,3895.0,3894.9,5.3e-06]
[1734275392071,5.74275756,3895.0,3894.9,5.3e-06]
[1734275393032,5.74263125,3895.0,3894.9,5.3e-06]
[1734275393576,6.8146976,3895.0,3894.9,5.3e-06]
[1734275397495,6.81504686,3895.0,3894.9,5.3e-06]
[1734275397939,4.43710486,3895.0,3894.9,5.3e-06]
[1734275400433,0.87058376,3895.0,3894.9,5.3e-06]
[1734275400638,2.56728,3895.2,3894.9,0.8051053]
[1734275404124,1.07206635,3895.5,3894.9,0.8051053]
[1734275404125,3.63916635,3895.5,3894.9,0.8051053]
[1734275404338,2.5671,3895.5,3894.9,0.8051053]
[1734275405624,1.07206635,3895.8,3894.9,0.8051053]
[1734275405862,2.56728,3895.2,3894.9,0.8051053]
[1734275406914,2.56713,3895.4,3894.9,0.8051053]
[1734275407311,2.56696,3895.7,3894.9,0.8051053]
[1734275407552,2.567,3895.6,3894.9,0.8051053]
[1734275408444,1.07206635,3895.8,3894.9,0.8051053]
[1734275408747,2.56708,3895.5,3894.9,0.8051053]
[1734275410413,0.51422701,3895.9,3894.9,0.8051053]
[1734275410414,1.58629336,3895.9,3894.9,0.8051053]
[1734275410650,3.43745648,3895.8,3894.9,0.8051053]
[1734275410850,2.56694,3895.7,3894.9,0.8051053]
[1734275411174,3.63882635,3896.0,3894.9,0.8051053]
[1734275411454,2.56676,3896.0,3894.9,0.8051053]
[1734275411828,2.56676,3896.0,3895.1,0.7528]
[1734275412630,1.60842819,3896.3,3895.0,0.33726853]
[1734275412631,3.63864635,3896.3,3895.3,0.7528]
[1734275412853,2.56658,3896.3,3895.3,0.7528]
[1734275414955,2.5666,3896.2,3895.3,0.7528]
[1734275415659,2.56647,3896.4,3895.3,0.7528]
[1734275415862,2.56647,3896.4,3895.5,0.7528]
[1734275416456,0.7741,3896.7,3895.6,0.7528]
[1734275416457,1.07206635,3896.7,3895.6,0.7528]
[1734275416627,3.24784013,3896.7,3895.6,0.7528]
[1734275417030,0.51851299,3896.6,3895.6,0.7528]
[1734275417231,2.56654,3896.3,3895.6,0.7528]
[1734275417438,2.5666,3896.3,3895.6,0.7528]
[1734275417620,2.56663,3896.2,3895.6,0.7528]
[1734275420622,2.56667,3896.1,3895.6,0.7528]
[1734275421024,1.07206635,3896.4,3895.6,0.7528]
[1734275421354,1.07206635,3896.0,3895.2,0.7687]
[1734275421651,2.56693,3895.8,3895.2,0.7687]
[1734275421833,2.56693,3895.7,3895.2,0.7687]
[1734275425835,1.07206635,3895.9,3895.2,0.7687]
[1734275426068,2.56714,3895.4,3895.2,0.7687]
[1734275426369,3.3968,3895.6,3894.9,0.7687053]
[1734275426527,2.56735,3895.1,3894.9,5.3e-06]
[1734275427830,1.07206635,3895.4,3894.9,5.3e-06]
[1734275428055,0.87075513,3895.3,3894.9,5.3e-06]
[1734275428239,2.56719,3895.4,3894.9,5.3e-06]
[1734275429071,2.56708,3895.5,3895.0,0.7687]
[1734275430040,2.56713,3895.4,3895.0,0.7687]
[1734275431467,1.07206635,3895.6,3895.0,0.7687]
[1734275431652,2.56718,3895.4,3895.0,0.7687]
[1734275431856,2.56719,3895.3,3895.0,0.7687]
[1734275435291,2.56726,3895.2,3895.0,0.7687]
[1734275436146,2.56726,3895.2,3894.9,5.3e-06]
[1734275436348,1.07206635,3895.4,3894.9,5.3e-06]
[1734275436546,2.56717,3895.4,3894.9,5.3e-06]
[1734275437081,2.5672,3895.3,3894.9,5.3e-06]
[1734275437812,2.91322632,3895.5,3894.9,5.3e-06]
[1734275437973,2.56708,3895.5,3894.9,5.3e-06]
[1734275438320,2.33498559,3895.7,3894.9,5.3e-06]
[1734275438628,2.56715,3895.4,3894.9,5.3e-06]
[1734275438830,1.07206635,3895.6,3894.9,5.3e-06]
[1734275439038,4.15194559,3895.7,3895.0,0.8251]
[1734275439182,3.07987924,3895.7,3895.0,0.8251]
[1734275440295,1.07206635,3895.9,3895.0,0.8251]
[1734275440616,3.63881635,3896.0,3895.0,0.8251]
[1734275440781,0.87105456,3895.9,3895.2,0.8251]
[1734275443002,1.07206635,3896.0,3895.2,0.8251]
[1734275443182,0.8712569,3895.9,3895.2,0.8251]
[1734275443519,1.07206635,3896.1,3895.2,0.8251]
[1734275445243,1.07206635,3896.1,3895.2,2.56725]
[1734275445451,1.07206635,3896.1,3895.4,0.8251]
[1734275445648,1.07206635,3896.4,3895.5,0.8251]
[1734275446853,3.250708,3896.3,3895.5,0.8251]
[1734275447308,3.250708,3896.2,3895.5,0.8251]
[1734275447429,0.87145666,3896.1,3895.5,0.8251]
[1734275447625,1.07206635,3896.3,3895.5,0.8251]
[1734275447812,1.07206635,3896.2,3895.5,0.8251]
[1734275448224,0.87140136,3896.1,3895.5,0.8251]
[1734275448424,1.07206635,3896.3,3895.5,1.164335]
[1734275448630,3.2505641,3896.3,3895.5,1.164335]
[1734275449143,3.2505641,3896.3,3895.6,0.8251]
[1734275449352,1.07206635,3896.5,3895.8,0.8251]
[1734275449663,1.07206635,3896.7,3895.8,0.8251]
[1734275449882,2.17822112,3896.7,3895.8,0.8251]
[1734275450031,1.07206635,3896.8,3895.8,0.8251]
[1734275450874,3.25745913,3896.8,3895.8,0.8251]
[1734275451073,3.25745913,3896.7,3895.8,0.8251]
[1734275451258,1.07206635,3896.8,3895.9,0.8251]
[1734275451567,5.82302175,3896.8,3895.9,0.8251]
[1734275451763,2.1847354,3896.7,3895.9,0.8251]
[1734275451921,2.56641,3896.5,3895.9,0.8251]
[1734275452763,1.07206635,3896.6,3895.9,0.8251]
[1734275453061,1.07206635,3896.7,3895.9,0.8251]
[1734275453362,3.63831635,3896.8,3895.9,0.8251]
[1734275453538,2.1844002,3896.7,3895.9,0.8251]
[1734275454156,0.87376413,3896.6,3895.9,0.8251]
[1734275454470,0.55,3896.5,3895.9,0.8251]
[1734275454677,0.55,3896.7,3896.0,0.82]
[1734275454837,1.07206635,3896.8,3896.0,0.82]
[1734275454838,0.55,3896.8,3896.0,0.82]
[1734275455033,0.87366641,3896.7,3896.0,0.82]
[1734275455248,0.55,3896.8,3896.0,0.82]
[1734275455663,0.55,3896.9,3896.0,0.82]
[1734275455862,0.87356033,3896.8,3896.1,0.82]
[1734275456030,0.55,3896.7,3896.1,0.82]
[1734275456369,0.55,3896.9,3896.1,0.82]
[1734275456569,0.55,3896.6,3895.1,0.82]
[1734275456772,0.55,3896.1,3895.3,0.82]
[1734275456979,0.55,3895.9,3895.3,0.82]
[1734275459141,2.56678,3896.0,3895.3,0.82]
[1734275460370,2.56687,3895.8,3895.3,0.82]
[1734275461993,1.88596635,3896.2,3895.3,0.82]
[1734275462277,1.07206635,3896.3,3895.3,0.82]
[1734275462434,2.56673,3896.0,3895.3,0.82]
[1734275463082,1.07206635,3896.3,3895.3,0.82]
[1734275463284,2.56695,3895.7,3895.3,0.82]
[1734275464749,2.56702,3895.6,3895.3,0.82]
[1734275466780,2.56707,3895.5,3895.3,0.82]
[1734275473147,1.88596635,3895.9,3895.3,0.82]
[1734275473349,2.56688,3895.8,3895.3,0.82]
[1734275473962,2.56691,3895.8,3895.3,0.82]
[1734275474165,2.56701,3895.6,3895.3,0.82]
[1734275474371,2.56701,3895.6,3895.3,6.82]
[1734275476063,2.5671,3895.5,3895.3,6.82]
[1734275477676,2.56713,3895.4,3895.3,6.0]
[1734275478560,3.44132199,3895.4,3895.3,6.0]
[1734275478982,4.75267669,3895.4,3895.3,6.0]
[1734275479174,5.82474304,3895.4,3895.3,6.0]
[1734275480281,5.82483171,3895.4,3895.3,6.0]
[1734275480485,6.99076244,3895.4,3895.3,6.0]
[1734275483507,5.91869609,3895.4,3895.3,6.0]
[1734275485025,5.91855138,3895.4,3895.3,6.0]
[1734275488813,6.99300872,3895.4,3895.3,6.0]
[1734275489016,5.91855138,3895.4,3895.3,6.0]
[1734275489611,3.73306073,3895.4,3895.3,6.0]
[1734275489817,5.91743471,3895.4,3895.3,6.0]
[1734275491934,6.99189205,3895.4,3895.3,6.0]
[1734275492756,5.91743471,3895.4,3895.3,6.0]
[1734275495431,6.99189205,3895.4,3895.3,6.0]
[1734275496641,5.91743471,3895.4,3895.3,6.0]
[1734275497076,6.9918177,3895.4,3895.3,6.0]
[1734275497259,5.91743471,3895.4,3895.3,6.0]
[1734275497868,2.56739,3895.0,3894.9,5.3e-06]
[1734275498055,5.34252198,3895.0,3894.9,5.3e-06]
[1734275498376,7.72746343,3895.0,3894.9,5.3e-06]
[1734275499241,6.11552198,3895.0,3894.9,5.3e-06]
[1734275499478,7.72750836,3895.0,3894.9,5.3e-06]
[1734275500084,7.86348225,3895.0,3894.9,5.3e-06]
[1734275502183,10.01279985,3895.0,3894.9,5.3e-06]
[1734275502682,7.86348225,3895.0,3894.9,5.3e-06]
[1734275503349,10.01279985,3895.0,3894.9,5.3e-06]
[1734275503554,10.52070504,3895.0,3894.9,5.3e-06]
[1734275503746,8.37138744,3895.0,3894.9,5.3e-06]
[1734275505001,10.52070504,3895.0,3894.9,5.3e-06]
[1734275505280,10.52101732,3895.0,3894.9,5.3e-06]
[1734275505780,8.33664334,3895.0,3894.9,5.3e-06]
[1734275505951,8.77395824,3895.0,3894.9,5.3e-06]
[1734275506299,9.62432836,3895.0,3894.9,5.3e-06]
[1734275506435,11.37228863,3895.0,3894.9,5.3e-06]
[1734275506642,14.05895042,3895.0,3894.9,5.3e-06]
[1734275506876,11.37228863,3895.0,3894.9,5.3e-06]
[1734275507491,14.05852513,3895.0,3894.9,5.3e-06]
[1734275507980,11.37228863,3895.0,3894.9,5.3e-06]
[1734275508183,11.37175646,3895.0,3894.9,5.3e-06]
[1734275509372,14.05754798,3895.0,3894.9,5.3e-06]
[1734275509655,11.37175646,3895.0,3894.9,5.3e-06]
[1734275512362,13.5199061,3895.0,3894.9,5.3e-06]
[1734275512557,9.7469061,3895.0,3894.9,5.3e-06]
[1734275513290,7.59875646,3895.0,3894.9,5.3e-06]
[1734275513804,9.7469061,3895.0,3894.9,5.3e-06]
[1734275515293,7.59875646,3895.0,3894.9,5.3e-06]
[1734275515796,9.7469061,3895.0,3894.9,5.3e-06]
[1734275516295,10.5790061,3895.0,3894.9,5.3e-06]
[1734275516515,8.43085646,3895.0,3894.9,5.3e-06]
[1734275516713,14.11664798,3895.0,3894.9,5.3e-06]
[1734275516883,11.43085646,3895.0,3894.9,5.3e-06]
[1734275517080,11.43023356,3895.0,3894.9,5.3e-06]
[1734275518701,12.97023356,3895.0,3894.9,5.3e-06]
[1734275518928,11.43023356,3895.0,3894.9,5.3e-06]
[1734275520576,14.11604278,3895.0,3894.9,5.3e-06]
[1734275520814,9.24611346,3895.0,3894.9,5.3e-06]
[1734275520986,14.11608316,3895.0,3894.9,5.3e-06]
[1734275521375,11.43033834,3895.0,3894.9,5.3e-06]
[1734275521817,14.11629792,3895.0,3894.9,5.3e-06]
[1734275522203,11.43033834,3895.0,3894.9,5.3e-06]
[1734275524652,11.43113066,3895.0,3894.9,5.3e-06]
[1734275525313,14.11772902,3895.0,3894.9,5.3e-06]
[1734275525621,13.28562902,3895.0,3894.9,5.3e-06]
[1734275529039,13.28635344,3895.0,3894.9,5.3e-06]
[1734275529907,10.59930118,3895.0,3894.9,5.3e-06]
[1734275530103,13.28635344,3895.0,3894.9,5.3e-06]
[1734275532683,11.35470118,3895.0,3894.9,5.3e-06]
[1734275533725,11.35550379,3895.0,3894.9,5.3e-06]
[1734275534835,10.28817265,3895.0,3894.9,5.3e-06]
[1734275535033,7.00934579,3895.0,3894.9,5.3e-06]
[1734275536418,9.15978757,3895.0,3894.9,5.3e-06]
[1734275537454,7.00934579,3895.0,3894.9,5.3e-06]
[1734275537952,7.01023461,3895.0,3894.9,5.3e-06]
[1734275538725,5.26227434,3895.0,3894.9,5.3e-06]
[1734275539052,9.16179306,3895.0,3894.9,5.3e-06]
[1734275539755,11.14118194,3895.0,3894.9,5.3e-06]
[1734275539930,8.45204646,3895.0,3894.9,5.3e-06]
[1734275542322,11.68494369,3895.0,3894.9,5.3e-06]
[1734275546466,10.64205094,3895.0,3894.9,5.3e-06]
[1734275546638,8.45444551,3895.0,3894.9,5.3e-06]
[1734275546853,11.45444551,3895.0,3894.9,5.3e-06]
[1734275547261,13.64205094,3895.0,3894.9,5.3e-06]
[1734275550778,2.56818,3893.8,3893.7,0.8299]
[1734275551079,2.56818,3893.8,3892.6,1.59946837]
[1734275551080,4.34558046,3893.8,3892.6,2.15796082]
[1734275551262,4.34558046,3893.8,3892.0,1.06631225]
[1734275551263,2.56888,3892.8,3892.0,1.06631225]
[1734275551464,2.56888,3892.8,3891.7,2.1326245]
[1734275551465,3.26798183,3892.7,3892.1,0.89090906]
[1734275551673,2.19059646,3892.6,3892.2,0.8299]
[1734275551867,0.8762731,3892.5,3892.2,0.8299]
[1734275552045,3.64626537,3892.8,3892.2,0.8299]
[1734275552242,0.8755918,3892.7,3892.2,0.8299]
[1734275553092,2.56888,3892.8,3892.2,0.8299]
[1734275553378,1.07738537,3892.9,3892.2,0.8299]
[1734275553741,1.07738537,3892.9,3891.5,0.51135064]
[1734275553742,1.95247493,3892.9,3892.4,0.8198]
[1734275553940,1.07738537,3893.1,3892.6,0.8198]
[1734275554144,0.87511486,3893.0,3892.6,0.8198]
[1734275554504,1.07738537,3893.2,3892.6,0.8198]
[1734275554660,3.26460109,3893.2,3892.6,0.8198]
[1734275554984,2.18721572,3893.1,3892.6,0.970478]
[1734275555278,1.07738537,3893.4,3892.6,0.970478]
[1734275555480,1.07738537,3893.6,3892.6,0.970478]
[1734275555837,0.8746756,3893.5,3892.8,0.8198]
[1734275556045,1.07738537,3893.7,3892.8,0.8198]
[1734275556292,1.07738537,3893.7,3893.0,0.8198]
[1734275556499,0.87456402,3893.8,3893.2,0.8198]
[1734275556500,1.07738537,3893.8,3893.2,0.8198]
[1734275556800,0.87453897,3893.7,3893.2,0.8198]
[1734275556957,1.07738537,3893.9,3893.2,0.8198]
[1734275557145,1.311785,3893.8,3893.2,0.8198]
[1734275557344,0.87452333,3893.7,3893.2,0.99767378]
[1734275557544,1.07738537,3893.9,3893.2,0.99767378]
[1734275557545,1.07738537,3893.8,3893.2,0.99767378]
[1734275557869,3.26360861,3893.8,3893.2,0.99767378]
[1734275558053,2.18622324,3893.7,3893.2,0.99767378]
[1734275558397,1.07738537,3893.8,3893.2,0.99767378]
[1734275558697,3.26272574,3893.8,3893.4,0.8198]
[1734275558902,0.8741363,3893.7,3893.4,0.8198]
[1734275559061,1.07738537,3893.8,3893.4,0.8198]
[1734275559270,3.26266422,3893.8,3893.4,0.8198]
[1734275559455,0.87411154,3893.7,3893.4,0.8198]
[1734275559784,1.07738537,3893.8,3893.4,0.8198]
[1734275560582,1.07738537,3893.9,3893.4,0.8198]
[1734275560878,0.87415255,3893.8,3893.4,0.8198]
[1734275561086,1.07738537,3894.0,3893.4,0.8198]
[1734275561283,1.31129887,3893.9,3893.4,0.8198]
[1734275561455,0.87419925,3893.8,3893.4,0.8198]
[1734275561667,1.07738537,3894.0,3893.4,0.8198]
[1734275561984,3.26285675,3894.0,3893.4,0.8198]
[1734275562190,3.26285675,3893.9,3893.4,0.8198]
[1734275562361,0.87418855,3893.8,3893.4,0.8198]
[1734275562565,1.07738537,3894.0,3893.4,0.8198]
[1734275562790,1.07738537,3894.4,3893.4,0.8198]
[1734275563089,2.56765,3894.7,3893.5,0.8198]
[1734275563090,1.07738537,3894.5,3893.5,0.8198]
[1734275563395,1.07738537,3894.5,3893.0,1.06631225]
[1734275563396,1.07738537,3894.7,3893.7,0.8198]
[1734275563551,1.59410315,3894.7,3893.8,0.8198]
[1734275563751,0.87427563,3894.6,3894.0,0.8198]
[1734275563991,1.59410315,3894.7,3894.0,0.8198]
[1734275564188,0.87426434,3894.6,3894.0,0.8198]
[1734275565159,1.95164971,3894.6,3894.0,0.8198]
[1734275565369,2.18555066,3894.5,3894.0,0.8198]
[1734275565567,0.87426434,3894.4,3894.0,0.8198]
[1734275565760,1.07738537,3894.6,3894.0,0.8198]
[1734275565971,0.51671778,3894.7,3894.0,0.8198]
[1734275565972,1.07738537,3894.5,3894.0,0.8198]
[1734275566394,3.26280478,3894.5,3894.0,0.8198]
[1734275566589,3.64504537,3894.6,3894.0,0.8198]
[1734275566789,2.18547761,3894.5,3894.0,0.8198]
[1734275567607,1.59410315,3894.7,3894.0,0.8198]
[1734275567755,2.18558715,3894.6,3894.0,0.8198]
[1734275568057,3.26297252,3894.6,3894.0,0.8198]
[1734275568259,3.26297252,3894.5,3894.0,0.8198]
[1734275568486,2.18558715,3894.4,3894.0,0.8198]
[1734275568696,1.07738537,3894.5,3894.0,0.8198]
[1734275568697,0.87423486,3894.3,3894.0,0.8198]
[1734275568858,1.07738537,3894.5,3894.0,0.8198]
[1734275569189,3.26297803,3894.4,3894.0,0.8198]
[1734275569393,2.18559266,3894.3,3894.0,0.8198]
[1734275569578,0.87423706,3894.2,3894.0,0.8198]
[1734275569778,1.07738537,3894.4,3894.0,0.8198]
[1734275570086,3.2628949,3894.4,3894.0,0.8198]
[1734275570399,3.64510537,3894.5,3894.0,0.8198]
[1734275570686,2.18553057,3894.4,3894.0,0.8198]
[1734275570995,0.87422043,3894.3,3894.0,0.8198]
[1734275571157,3.44212644,3894.2,3893.3,0.8198]
[1734275571361,3.26284895,3894.1,3893.3,0.8198]
[1734275571667,2.18546358,3894.0,3893.3,0.8198]
[1734275571875,1.07738537,3894.1,3893.3,0.8198]
[1734275572117,0.87409185,3894.0,3893.3,0.8198]
[1734275572431,1.07738537,3894.1,3893.3,0.8198]
[1734275572564,2.18525496,3894.0,3893.3,0.8198]
[1734275572760,1.07738537,3894.1,3893.3,0.8198]
[1734275572973,2.18525368,3894.0,3893.3,0.8198]
[1734275573205,1.07738537,3894.1,3893.3,0.8198]
[1734275573365,0.87403383,3894.0,3893.3,0.8198]
[1734275573821,0.87403383,3894.0,3893.4,0.7863]
[1734275573990,1.07738537,3894.3,3893.4,0.7863]
[1734275574302,3.2629524,3894.3,3893.4,0.7863]